Cogmind - Beta 16.1 @@@ ROGUE MODE // 2026.02.17 @ 21:14:32 Player: Thqwib-Linux Result: Destroyed by LD-A59(R) with Subdweller Machine Gun Performance ------------- Evolutions (0) 0 Regions Visited (3) 600 Robots Destroyed (13) 65 Value Destroyed (389) 389 Prototype IDs (0) 0 Alien Tech Used (0) 0 Bonus (0) 0 TOTAL SCORE: 1054 Bonus ------- None Cogmind --------- Core Integrity 0/250 Matter 290/300 Energy 100/100 System Corruption 0% Temperature Cool (0) Movement Core (200) Ox3 Location -10/Subcaves Parts ------- > --- POWER (1) -------- (None) > --- PROPULSION (2) --- (None) > --- UTILITY (2) ------ Medium Storage Unit > --- WEAPON (2) ------- Hammer > --- INVENTORY (10) --- Ion Engine Aluminum Leg Scrap Suit Medium Laser Small Laser Particle Gun Light Cannon Light Cannon Peak State ------------ > --- POWER ------------ Light Nuclear Core > --- PROPULSION ------- Aluminum Leg Aluminum Leg > --- UTILITY ---------- Heat Sink Medium Storage Unit > --- WEAPON ----------- Medium Laser Assault Rifle > --- INVENTORY -------- Ion Engine Aluminum Leg Scrap Suit Small Laser Particle Gun Light Cannon Light Cannon Hammer [Rating: 10] Favorites ----------- Power Light Nuclear Core Engine Ion Engine Power Core Light Nuclear Core Propulsion Aluminum Leg Leg Aluminum Leg Utility Medium Storage Unit Device Heat Sink Storage Medium Storage Unit Weapon Medium Laser Energy Gun Medium Laser Ballistic Gun Assault Rifle Impact Weapon Hammer Build | -11 -10 -10 -10 ------- Run | Yrd Mat Min Sub Slots Evolved . | . . . . Power . | . . . . Propulsion . | . . . . Utility . | . . . . Weapon . | . . . . Parts Attached 10 | 1 2 3 4 Power 2 | . 1 1 . Engine 1 | . 1 . . Core 1 | . . 1 . Reactor . | . . . . Propulsion 2 | . . 2 . Treads . | . . . . Leg 2 | . . 2 . Wheel . | . . . . Hover . | . . . . Flight . | . . . . Utility 2 | . 1 . 1 Device 1 | . . . 1 Storage 1 | . 1 . . Processor . | . . . . Hackware . | . . . . Protection . | . . . . Artifact . | . . . . Weapon 4 | 1 . . 3 Energy Gun 1 | . . . 1 Energy Cannon . | . . . . Ballistic Gun 2 | 1 . . 1 Ballistic Cannon . | . . . . Launcher . | . . . . Special Weapon . | . . . . Impact Weapon 1 | . . . 1 Slashing Weapon . | . . . . Piercing Weapon . | . . . . Special Melee Weapon . | . . . . Unidentified Prototypes . | . . . . Parts Lost 6 | . . . 6 Power 1 | . . . 1 Propulsion 2 | . . . 2 Utility 1 | . . . 1 Weapon 2 | . . . 2 Highest Loss Streak 4 | . . . 4 To Critical Strikes . | . . . . Average Backups 6 | 5 3 7 7 Power 1 | 1 1 1 1 Propulsion . | 3 . 1 1 Utility . | . . . 1 Weapon 4 | 1 2 4 4 Tool/Special . | . . . . Unused Backups 11 | . 5 . 6 Power 2 | . 1 . 1 Propulsion 3 | . 2 . 1 Utility 2 | . 1 . 1 Weapon 4 | . 1 . 3 Tool/Special . | . . . . Average Slot Usage (%) 84 | . 82 85 86 Engine 5 | . 14 2 . Core 8 | . . 11 13 Leg 27 | . 28 28 26 Device 1 | . . . 2 Storage 13 | . 11 14 14 Energy Gun 13 | . 14 14 13 Ballistic Gun 12 | . 14 14 11 Impact Weapon 1 | . . . 3 Peak Build Rating 10 | 6 6 9 10 Average Rating 8 | 6 5 8 9 On Entrance 6 | 6 6 6 9 Avg Prop Armor Cover (%) . | . . . . Naked Turns . | . . . . Heaviest Build 21 | 14 19 19 21 Greatest Support 20 | 20 20 20 20 Greatest Overweight (x) 6 | . . . 6 Average Overweight (x) . | . . . . Largest Inventory Capacity 10 | 8 10 10 10 Average Capacity 9 | 8 9 10 10 Most Carried 9 | 5 7 9 9 Average Carried 7 | 2 4 8 8 Final Capacity 10 | 8 10 10 10 Final Carried 9 | 1 6 9 9 Class Distribution -------------------- 61% | Scavenger-Mutant 38% | Mutant Dominant Class ---------------- Mutant | -10/Materials Scavenger-Mutant | -10/Mines Scavenger-Mutant | -10/Subcaves Resources | -11 -10 -10 -10 ----------- Run | Yrd Mat Min Sub Matter Collected 412 | 200 123 25 64 Remotely . | . . . . Salvage Created 467 | . 218 89 160 Parts 22 | . 8 4 10 Haulers Intercepted 1 | . 1 . . Recyclers Shooed 1 | . . 1 . Parts Field Recycled . | . . . . Retrieved Matter . | . . . . Parts Self-Destructed 10 | . . . 10 Prevented . | . . . . Parts Restored . | . . . . Kills | -11 -10 -10 -10 ------- Run | Yrd Mat Min Sub Combat Hostiles Destroyed 12 | . 6 2 4 Guns 12 | . 6 2 4 Classes Destroyed 4 | . 3 . 1 Hauler 1 | . 1 . . Swarmer 3 | . 3 . . Grunt 7 | . 3 2 2 Subdweller 2 | . . . 2 Best Kill Streak 4 | . 4 2 2 Combat Bots Only 4 | . 4 2 2 Max Kills in Single Turn 1 | . 1 1 1 Gunslinging . | . . . . Exploded . | . . . . Melee . | . . . . Uniques/NPCs Destroyed . | . . . . Combat | -11 -10 -10 -10 -------- Run | Yrd Mat Min Sub Hostile Shots Fired 90 | . 36 10 44 Missed 25 | . 10 3 12 Hits 65 | . 26 7 32 Projectile 65 | . 26 7 32 Critical Strikes 1 | . . . 1 Damage Taken 944 | . 265 85 594 Core 259 | . 77 11 171 Absorbed by Shields . | . . . . Core Remaining (%) 100 | 100 . . . Volleys Fired 56 | . 31 5 20 Largest 2 | . 2 2 2 Hottest 115 | . 70 70 115 Shots Fired 112 | . 62 10 40 Gun 112 | . 62 10 40 Cannon . | . . . . Launcher . | . . . . Special . | . . . . Kinetic 49 | . 31 5 13 Thermal 63 | . 31 5 27 Explosive . | . . . . Electromagnetic . | . . . . Robot Hit Streak 22 | . 15 8 22 Robot Miss Streak 2 | . 2 2 2 Penetration Max . | . . . . Secondary Targets 2 | . . . 2 Max Gunslinging Chain 1 | . . . 1 Shots Hit Robots 91 | . 43 8 40 Core Hits 26 | . 11 5 10 Critical Kills . | . . . . Critical Parts Destroyed 1 | . 1 . . Critical Strikes 3 | . 2 . 1 Burn 1 | . 1 . . Destroy 1 | . 1 . . Smash 1 | . . . 1 Melee Attacks 17 | . . . 17 Impact 17 | . . . 17 Slashing . | . . . . Piercing . | . . . . Sneak Attacks . | . . . . Combat Hostiles . | . . . . Follow-up Attacks . | . . . . Damage Inflicted 1132 | . 558 97 477 Guns 994 | . 558 96 340 Cannons . | . . . . Explosions . | . . . . Melee 137 | . . . 137 Ramming 1 | . . 1 . Kinetic 460 | . 293 46 121 Thermal 534 | . 265 50 219 Explosive . | . . . . Electromagnetic . | . . . . Impact 137 | . . . 137 Slashing . | . . . . Piercing . | . . . . Highest Corruption . | . . . . Average Corruption . | . . . . Corruption Purged . | . . . . Corruption Blocked . | . . . . Overload Shots . | . . . . Overflow Damage . | . . . . Projectiles . | . . . . Explosions . | . . . . Melee . | . . . . Knockbacks 2 | . . . 2 Impact 2 | . . . 2 Kinetic . | . . . . Secondary . | . . . . Self-Inflicted Damage . | . . . . Shots . | . . . . Rammed . | . . . . Targets Rammed 1 | . . 1 . Kicked 1 | . . 1 . Crushed . | . . . . Highest Temperature 159 | . 159 72 . Average Temperature 58 | . 61 35 . Received Heat Transfer 216 | . 108 48 60 Siege Activations . | . . . . Martial Activations . | . . . . Shielding Activations . | . . . . Robots Disrupted . | . . . . Combat Hostiles . | . . . . Robots Corrupted . | . . . . Combat Hostiles . | . . . . Parts Fried . | . . . . Impact Corruptions . | . . . . Robots Melted . | . . . . Combat Hostiles . | . . . . Parts Melted 4 | . 4 . . Heat Transferred 1628 | . 851 148 629 Parts Sabotaged . | . . . . Parts Stolen . | . . . . Parts Stripped . | . . . . Power Chain Reactions . | . . . . Alert | -11 -10 -10 -10 ------- Run | Yrd Mat Min Sub Maximum Alert Level . | . . . . Low Security (%) 100 | 100 100 100 . Level 1 . | . . . . Level 2 . | . . . . Level 3 . | . . . . Level 4 . | . . . . Level 5 . | . . . . High Security . | . . . . Max Security . | . . . . Peak Influence 96 | . 96 61 . Initial 21 | . . 21 . Average 26 | . 28 24 . Influence Increases 307 | . 177 50 80 Destroy 0b10 Robot/C 200 | . 120 40 40 Destroy 0b10 Robot/NC 5 | . 5 . . Destroy Leader 52 | . 32 10 10 Successful Hack 4 | . 4 . . Destroy Structure 1 | . 1 . . Lose Combat Pursuer 45 | . 15 . 30 Influence Decreases 307 | . 121 106 80 Entered New Map 35 | . . 35 . Time Decay 272 | . 121 71 80 Squads Dispatched 2 | . 2 . . Investigation 1 | . 1 . . Extermination . | . . . . Reinforcement 1 | . 1 . . Assault . | . . . . Garrison . | . . . . Intercept . | . . . . Searches Triggered . | . . . . Construction Impeded . | . . . . Haulers Reinforced . | . . . . Active Scanning Responses . | . . . . Cargo Convoy Interrupts . | . . . . Stealth | -11 -10 -10 -10 --------- Run | Yrd Mat Min Sub Distress Signals . | . . . . Communications Jammed . | . . . . Distress Signals . | . . . . Times Spotted 20 | . 11 2 7 Peak Tracking Total 3 | . 3 2 2 Tactical Retreats 2 | . 1 . 1 Traps | -11 -10 -10 -10 ------- Run | Yrd Mat Min Sub Traps Triggered 1 | . 1 . . Indirectly . | . . . . Trap Hack Attempts . | . . . . Triggered . | . . . . Disarmed . | . . . . Reprogrammed . | . . . . Reused . | . . . . Traps Extracted . | . . . . Installed . | . . . . Triggered . | . . . . Machines | -11 -10 -10 -10 ---------- Run | Yrd Mat Min Sub Machines Disabled . | . . . . Max in Single Turn . | . . . . Machines Repaired . | . . . . Machines Dismantled . | . . . . Machines Sabotaged . | . . . . Overloaded Fab Kills . | . . . . Hacking | -11 -10 -10 -10 --------- Run | Yrd Mat Min Sub Machines Accessed 3 | . 3 . . Terminals 3 | . 3 . . Fabricators . | . . . . Repair Stations . | . . . . Recycling Units . | . . . . Scanalyzers . | . . . . Garrison Access . | . . . . Total Hacks 8 | . 8 . . Successful 2 | . 2 . . Failed 6 | . 6 . . Catastrophic . | . . . . Database Lockouts . | . . . . Manual 5 | . 5 . . Terminals 8 | . 8 . . Fabricators . | . . . . Repair Stations . | . . . . Recycling Units . | . . . . Scanalyzers . | . . . . Garrison Access . | . . . . Terminal Hacks . | . . . . Fabricator Hacks . | . . . . Repair Station Hacks . | . . . . Recycling Unit Hacks . | . . . . Scanalyzer . | . . . . Garrison Access Hacks . | . . . . Unauthorized Hacks 2 | . 2 . . Terminals 2 | . 2 . . Botnet 2 | . 2 . . Fabricators . | . . . . Repair Stations . | . . . . Recycling Units . | . . . . Scanalyzers . | . . . . Garrison Access . | . . . . Data Cores Recovered . | . . . . Used . | . . . . Hacking Detections 3 | . 3 . . Full Trace Events . | . . . . Feedback Events . | . . . . Feedback Blocked . | . . . . Robot Schematics Acquired . | . . . . Robots Built . | . . . . Authchips . | . . . . Time . | . . . . Total Robot Build Rating . | . . . . Part Schematics Acquired . | . . . . Parts Built . | . . . . Authchips . | . . . . Time . | . . . . Total Part Build Rating . | . . . . Part Studies Acquired . | . . . . Parts Repaired . | . . . . Time . | . . . . Parts Recycled . | . . . . Recycled Matter . | . . . . Retrieved Matter . | . . . . Retrieved Components . | . . . . Parts Scanalyzed . | . . . . Part Schematics Acquired . | . . . . Parts Damaged . | . . . . Bothacking | -11 -10 -10 -10 ------------ Run | Yrd Mat Min Sub Used RIF Installer . | . . . . Robots Hacked . | . . . . Non-combat . | . . . . Combat . | . . . . Robot Hacks Applied . | . . . . Relay Couplers Released . | . . . . Fabnet Peak Effective % . | . . . . Robots Rewired . | . . . . Allies Hacked . | . . . . Hacks Repelled . | . . . . Allies | -11 -10 -10 -10 -------- Run | Yrd Mat Min Sub Total Allies . | . . . . Largest Group . | . . . . Highest-Rated Group . | . . . . Highest-Rated Ally . | . . . . Total Orders . | . . . . Ally Attacks . | . . . . Total Damage . | . . . . Kills . | . . . . Allies Corrupted . | . . . . Allies Melted . | . . . . Intel | -11 -10 -10 -10 ------- Run | Yrd Mat Min Sub Active Infowar (turns) . | . . . . Robot Analysis Total . | . . . . Derelict Logs Recovered 2 | . . 1 1 Drone Launches . | . . . . Drone Recoveries . | . . . . Exploration | -11 -10 -10 -10 ------------- Run | Yrd Mat Min Sub Turns Passed 1057 | 5 343 181 528 Spaces Moved 531 | 1 189 64 277 Core 2 | . . . 2 Treads . | . . . . Legs 529 | 1 189 64 275 Wheels . | . . . . Hover . | . . . . Flight . | . . . . Fastest Speed 120 | 120 120 120 120 Average Speed 127 | 120 120 120 134 Slowest Speed 350 | 120 120 120 350 Overloaded Moves . | . . . . Propulsion Burnouts . | . . . . Robots Hopped . | . . . . Potential Cave-ins . | . . . . Cave-ins Triggered . | . . . . Exploration Rate (%) 21 | 2 47 13 22 Regions Visited 3 Branch Regions 2 Pre-discovered Areas 1 | . . . 1 Known Exits Taken . | . . . . Unknown Exits Taken 3 | 1 1 1 . Scrap Searched . | . . . . Spaces Dug . | . . . . Terrain Destroyed . | . . . . Melee . | . . . . Projectile . | . . . . AOE . | . . . . Terrain Rammed . | . . . . Walls Destroyed . | . . . . Machines Disabled . | . . . . Actions | -11 -10 -10 -10 --------- Run | Yrd Mat Min Sub Total 767 | 6 243 158 360 Wait 136 | . 15 81 40 Move 528 | . 188 63 277 Hop . | . . . . Pick Up 8 | . 5 2 1 Fast Attach 2 | . 1 . 1 Attach 1 | . . . 1 Detach . | . . . . Swap 8 | 1 1 3 3 Drop 10 | 5 2 3 . Fire 56 | . 31 5 20 Melee 17 | . . . 17 Ram . | . . . . Kick 1 | . . 1 . Crush . | . . . . Escape Stasis . | . . . . Rewire . | . . . . Trap . | . . . . Miscellaneous . | . . . . Route ------- -11/Scrapyard -10/Materials (discovered 3 exits: [*Mat x2] / [*Min]) -10/Mines -10/Subcaves (discovered 1 exit: [*Mat]) History --------- Turn | Location | Event 6 | -11/Scrapyard | Discovered new exit (range 0) 6 | -11/Scrapyard | Entered Materials 57 | -10/Materials | Discovered new exit (range 15) 304 | -10/Materials | Build established: Mutant 307 | -10/Materials | Discovered new exit (range 7) 331 | -10/Materials | Discovered new exit (range 16) 349 | -10/Materials | Entered Mines 363 | -10/Mines | Met a Derelict bent on vengeance 398 | -10/Mines | Learned Materials security intel 404 | -10/Mines | Found a Scrap Suit stashed away for nefarious purposes 406 | -10/Mines | Found Scrap Suit 504 | -10/Mines | Discovered new exit (range 6) 530 | -10/Mines | Entered Subcaves 531 | -10/Subcaves | Approached by a straggling Scientist 677 | -10/Subcaves | Core integrity fell below 50% 682 | -10/Subcaves | Build established: Scavenger-Mutant 848 | -10/Subcaves | Discovered new exit (range 15) 866 | -10/Subcaves | Learned location of Storage (-7) 995 | -10/Subcaves | Ambushed by angry Subdweller bent on revenge 1051 | -10/Subcaves | Core integrity fell below 20% 1058 | -10/Subcaves | Destroyed by LD-A59(R) with Subdweller Machine Gun Last Messages --------------- 00801_ 7N-DHN(R) affixes Scrap Shield Fragment to Scrap Shield. 00802_ Heat Sink destroyed. 00805_ 7N-DHN(R) affixes Scrap Shield Fragment to Scrap Shield. 00806_ Assault Rifle destroyed. 00816_ 7N-DHN(R) affixes Scrap Shield Fragment to Scrap Shield. 00816_ 7N-DHN(R) destroyed. 00819_ Acquired 15 matter. 00827_ Acquired Sub. Machine Gun. 00848_ EXIT=FOUND 00866_ Acquired derelict log, extracted data. World map updated: -7/Storage. 00995_ LD-A59(R) angrily emerges from the Twisted Machinery. 00995_ LD-A59(R): "SUBHATE!" 01031_ Aluminum Leg destroyed. 01037_ LD-A59(R) suffers critical hit (Smash). 01037_ LD-A59(R) knocked back. 01037_ Aluminum Leg destroyed. 01042_ Sub. Machine Gun destroyed. 01044_ Lgt. Nuclear Core destroyed. 01054_ LD-A59(R) knocked back. Map ----- +----------------------------------------------------+ | #?# #???## #?? #??????????????????? | | ### #????# #?? #??????????????????? | | ## #????# ### #?????????????? ??? | | # #????? ??###????????? ?? | | ## ## ##??????? ???# ##??????? ??? | | ?# ### ###?????????# #??## #?????? ???? | | ?# #### ##???###??##### ##### #??????# ????? | | ?# #?###???## #### ## #????? ??????? | | ## #??###### #???? ???????? | | # #??# =# # #??? #?????#??? | | #### ##&&&### #### ## ##?? | | ### ####### #?### | | # ##?###????##!##???## | | ## ##????????## ##????# # ##### | | ?## #????????## ##### ## ##?????? ? | | ??#### #??????### ##### ##?????????? | | ?????#######????### #### #?????????? | | #???????????????# ## # ##????????? | | #???????????????# ### #????????? | | #??????????????## ##?## % #???????? | | #??????????????# ##??#####%## #????? | | ??????????????## #????######### ?? | | ##??????????????# ##### ##?????## < # | | #???????????????## ""## #???????# ### | | #????????????????# "" ##???????? ###???? | | ?????????????????#" @R###????????? #?????? | | ????????????????##" ""##??????????? & "#?????? | | ????????????????#" "##????????????? #?????? | | ????????????????# " #?????????????? #?????? | | ????????????????# " ##??????????????& ##?????? | | ????????????????# ""####????????????????##??????? | | ????????????????# "" #####???????????????????????? | | ????????????????# "" ##??????????????????????? | | ????????????????# "" #??????????????????????? | | ????????????????# " ##?????????????????????? | | ????????????????##" #?????????????????????? | | ?????????????????#" ##"""#?????????????????????? | | ?????????????????#"## ######?????????????????????? | | ?????????????????######??????????????????????????? | | ?????????????????????????????????????????????????? | | ?????????????????????????????????????????????????? | | ?????????????????????????????????????????????????? | | ?????????????????????????????????????????????????? | | ?????????????????????????????????????????????????? | | ?????????????????????????????????????????????????? | | ?????????????????????????????????????????????????? | | ?????????????????????????????????????????????????? | | ?????????????????????????????????????????????????? | | ?????????????????????????????????????????????????? | | ?????????????????????????????????????????????????? | +----------------------------------------------------+ Best States ------------- Heat Dissipation 35 Energy Generation 14 Energy Capacity 250 Matter Stores 300 Matter Capacity 300 Sight Range 16 Terrain Scan Density 10 Evasion (%) 55 Item Schematics ----------------- None Robot Schematics ------------------ None Fabricated ------------ Nothing Repaired ---------- Nothing Studied --------- None Alien Tech Used ----------------- None Achievements -------------- None Challenges ------------ None Game ------ Seed ArchitectHardcellPrototype Manual? 0 Play Time 00:10:07 Cumulative 12.4 hours Start 2026.02.17 @ 21:07:12 End 2026.02.17 @ 21:14:32 Sessions 1 Manual Loads 0 Difficulty Rogue Special Mode None Game No. 22 Rogue 22 Adventurer 0 Explorer 0 Win Type - Total 0 Types 0/0/0/0/0/0/0/0/0/0 Lore% 39 Gallery% 23 Achievement% 23 Wizard Run 0 Options --------- Layout 0 ASCII 0 Keyboard 0 Movement Arrows Keybinds 0 Fullscreen 2 Font 18/X11Bold Map View 76x50 Zoom Use 0% Tactical HUD 1 Map Filters NONE Filters NONE Steam 1 RUN: a1b7ef46-f6e0-4db9-9f87-f481656db6cb